[Event "Titled Tuesday Blitz November 14 Late 2023"]
[White "Solon, Nathan"]
[Black "Hong, Andrew"]
[WhiteFideId "2017229"]
[BlackFideId "2099438"]
[WhiteElo "2692"]
[BlackElo "2922"]
[Result "0-1"]
[Round "4"]
[TimeControl "180+1"]
[Date "2023.11.14"]
[WhiteClock "0:00:14"]
[BlackClock "0:01:10"]
[Board "15"]

1. d4 {[%clk 0:03:00]}  Nf6 {[%clk 0:02:59]} 2. Bf4 {[%clk 0:03:00]}  e6 {[%clk 0:02:56]} 3. e3 {[%clk 0:03:00]}  Nc6 {[%clk 0:02:56]} 4. Nf3 {[%clk 0:02:57]}  Ne7 {[%clk 0:02:56]} 5. h3 {[%clk 0:02:53]}  Ng6 {[%clk 0:02:56]} 6. Bh2 {[%clk 0:02:53]}  Be7 {[%clk 0:02:55]} 7. c4 {[%clk 0:02:50]}  O-O {[%clk 0:02:55]} 8. Nc3 {[%clk 0:02:50]}  d6 {[%clk 0:02:55]} 9. Bd3 {[%clk 0:02:50]}  b6 {[%clk 0:02:54]} 10. O-O {[%clk 0:02:50]}  Bb7 {[%clk 0:02:55]} 11. e4 {[%clk 0:02:47]}  Re8 {[%clk 0:02:54]} 12. Qe2 {[%clk 0:02:46]}  Bf8 {[%clk 0:02:54]} 13. Rad1 {[%clk 0:02:46]}  e5 {[%clk 0:02:54]} 14. dxe5 {[%clk 0:02:37]}  dxe5 {[%clk 0:02:53]} 15. c5 {[%clk 0:02:32]}  Qe7 {[%clk 0:02:48]} 16. cxb6 {[%clk 0:01:59]}  axb6 {[%clk 0:02:49]} 17. Bc4 {[%clk 0:01:53]}  c6 {[%clk 0:02:46]} 18. Ng5 {[%clk 0:01:49]}  Nh8 {[%clk 0:02:46]} 19. Bb3 {[%clk 0:01:37]}  h6 {[%clk 0:02:45]} 20. Nf3 {[%clk 0:01:37]}  Ng6 {[%clk 0:02:45]} 21. a3 {[%clk 0:01:26]}  Ba6 {[%clk 0:02:42]} 22. Bc4 {[%clk 0:01:25]}  b5 {[%clk 0:02:42]} 23. Bd3 {[%clk 0:01:22]}  Nh5 {[%clk 0:02:43]} 24. g3 {[%clk 0:00:50]}  Qe6 {[%clk 0:02:28]} 25. Kg2 {[%clk 0:00:49]}  Bc8 {[%clk 0:02:27]} 26. Ng1 {[%clk 0:00:48]}  Nf6 {[%clk 0:02:22]} 27. Bb1 {[%clk 0:00:49]}  Ba6 {[%clk 0:02:16]} 28. Ba2 {[%clk 0:00:48]}  Qc8 {[%clk 0:02:09]} 29. b4 {[%clk 0:00:44]}  Bb7 {[%clk 0:02:07]} 30. Qb2 {[%clk 0:00:44]}  Qc7 {[%clk 0:01:55]} 31. Nf3 {[%clk 0:00:42]}  Ra7 {[%clk 0:01:50]} 32. Rd3 {[%clk 0:00:35]}  Rea8 {[%clk 0:01:48]} 33. Rfd1 {[%clk 0:00:31]}  Rxa3 {[%clk 0:01:33]} 34. Nxb5 {[%clk 0:00:26]}  Rxa2 {[%clk 0:01:31]} 35. Qxa2 {[%clk 0:00:26]}  cxb5 {[%clk 0:01:29]} 36. Qe2 {[%clk 0:00:20]}  Bxe4 {[%clk 0:01:29]} 37. Re3 {[%clk 0:00:20]}  Qc6 {[%clk 0:01:26]} 38. Kg1 {[%clk 0:00:20]}  Bxb4 {[%clk 0:01:22]} 39. g4 {[%clk 0:00:18]}  Bc5 {[%clk 0:01:10]} 40. Rc3 {[%clk 0:00:17]}  b4 {[%clk 0:01:11]} 41. Rcc1 {[%clk 0:00:16]}  Bxf3 {[%clk 0:01:10]} 42. Rxc5 {[%clk 0:00:16]}  Bxe2 {[%clk 0:01:09]} 43. Rxc6 {[%clk 0:00:14]}  Bxd1 {[%clk 0:01:10]} 0-1


[Site "https://www.chess.com"]

[Event "Titled Tuesday Blitz November 14 Late 2023"]
[White "Ambartsumova, Karina"]
[Black "Andreikin, Dmitry"]
[WhiteFideId "4166299"]
[BlackFideId "4158814"]
[WhiteElo "2622"]
[BlackElo "3125"]
[Result "0-1"]
[Round "4"]
[TimeControl "180+1"]
[Date "2023.11.14"]
[WhiteClock "0:00:01"]
[BlackClock "0:01:24"]
[Board "17"]

1. d4 {[%clk 0:03:00]}  g6 {[%clk 0:03:00]} 2. e4 {[%clk 0:02:59]}  Bg7 {[%clk 0:03:00]} 3. Nc3 {[%clk 0:02:59]}  c6 {[%clk 0:03:01]} 4. h3 {[%clk 0:02:59]}  Nf6 {[%clk 0:02:57]} 5. e5 {[%clk 0:02:54]}  Nd5 {[%clk 0:02:56]} 6. Nxd5 {[%clk 0:02:50]}  cxd5 {[%clk 0:02:57]} 7. f4 {[%clk 0:02:49]}  d6 {[%clk 0:02:53]} 8. Nf3 {[%clk 0:02:47]}  Nc6 {[%clk 0:02:53]} 9. c3 {[%clk 0:02:42]}  O-O {[%clk 0:02:51]} 10. Bd3 {[%clk 0:02:41]}  dxe5 {[%clk 0:02:46]} 11. fxe5 {[%clk 0:02:42]}  f6 {[%clk 0:02:45]} 12. exf6 {[%clk 0:02:36]}  exf6 {[%clk 0:02:46]} 13. O-O {[%clk 0:02:35]}  Be6 {[%clk 0:02:46]} 14. Bf4 {[%clk 0:02:33]}  Qd7 {[%clk 0:02:46]} 15. Qd2 {[%clk 0:02:29]}  Rae8 {[%clk 0:02:46]} 16. Rae1 {[%clk 0:02:29]}  Bf5 {[%clk 0:02:42]} 17. Bxf5 {[%clk 0:02:13]}  Qxf5 {[%clk 0:02:43]} 18. Bd6 {[%clk 0:02:10]}  Rxe1 {[%clk 0:02:43]} 19. Nxe1 {[%clk 0:02:09]}  Qe6 {[%clk 0:02:29]} 20. Bxf8 {[%clk 0:02:08]}  Bxf8 {[%clk 0:02:30]} 21. Nf3 {[%clk 0:01:57]}  Bd6 {[%clk 0:02:30]} 22. Re1 {[%clk 0:01:56]}  Qf5 {[%clk 0:02:29]} 23. Qe2 {[%clk 0:01:48]}  Bg3 {[%clk 0:02:17]} 24. Qe6+ {[%clk 0:01:46]}  Qxe6 {[%clk 0:02:18]} 25. Rxe6 {[%clk 0:01:47]}  Kf7 {[%clk 0:02:18]} 26. Re2 {[%clk 0:01:47]}  h5 {[%clk 0:02:16]} 27. Nd2 {[%clk 0:01:46]}  Bf4 {[%clk 0:02:14]} 28. Kf2 {[%clk 0:01:44]}  h4 {[%clk 0:02:12]} 29. Kf3 {[%clk 0:01:42]}  g5 {[%clk 0:02:11]} 30. Nf1 {[%clk 0:01:35]}  Ne7 {[%clk 0:02:07]} 31. b3 {[%clk 0:01:30]}  Nf5 {[%clk 0:02:05]} 32. a4 {[%clk 0:01:04]}  a5 {[%clk 0:01:58]} 33. Re1 {[%clk 0:00:49]}  b6 {[%clk 0:01:47]} 34. Ke2 {[%clk 0:00:49]}  Nd6 {[%clk 0:01:41]} 35. Nd2 {[%clk 0:00:46]}  f5 {[%clk 0:01:39]} 36. Kd3 {[%clk 0:00:39]}  Ne4 {[%clk 0:01:37]} 37. Nxe4 {[%clk 0:00:35]}  dxe4+ {[%clk 0:01:38]} 38. Kc4 {[%clk 0:00:34]}  Ke6 {[%clk 0:01:34]} 39. Kb5 {[%clk 0:00:25]}  Bd2 {[%clk 0:01:31]} 40. Re2 {[%clk 0:00:13]}  Bxc3 {[%clk 0:01:31]} 41. Kc4 {[%clk 0:00:13]}  Bb4 {[%clk 0:01:29]} 42. d5+ {[%clk 0:00:12]}  Ke5 {[%clk 0:01:28]} 43. Kb5 {[%clk 0:00:09]}  Kxd5 {[%clk 0:01:26]} 44. Kxb6 {[%clk 0:00:09]}  Kd4 {[%clk 0:01:25]} 45. Rc2 {[%clk 0:00:06]}  e3 {[%clk 0:01:25]} 46. Rc8 {[%clk 0:00:01]}  e2 {[%clk 0:01:24]} 0-1


[Site "https://www.chess.com"]

[Event "Titled Tuesday Blitz November 14 Late 2023"]
[White "Paravyan, David"]
[Black "Guerra Tulcan, Lenin"]
[WhiteFideId "4194985"]
[BlackFideId "3601382"]
[WhiteElo "3023"]
[BlackElo "2606"]
[Result "1-0"]
[Round "4"]
[TimeControl "180+1"]
[Date "2023.11.14"]
[WhiteClock "0:01:30"]
[BlackClock "0:00:16"]
[Board "18"]

1. e4 {[%clk 0:03:00]}  c5 {[%clk 0:03:00]} 2. Nf3 {[%clk 0:03:00]}  e6 {[%clk 0:03:00]} 3. d4 {[%clk 0:02:59]}  cxd4 {[%clk 0:03:00]} 4. Nxd4 {[%clk 0:03:00]}  Nc6 {[%clk 0:03:01]} 5. c3 {[%clk 0:02:58]}  Nf6 {[%clk 0:02:56]} 6. Nxc6 {[%clk 0:02:58]}  bxc6 {[%clk 0:02:55]} 7. e5 {[%clk 0:02:58]}  Nd5 {[%clk 0:02:53]} 8. Nd2 {[%clk 0:02:59]}  Be7 {[%clk 0:02:49]} 9. Ne4 {[%clk 0:02:51]}  O-O {[%clk 0:02:48]} 10. Bd3 {[%clk 0:02:50]}  f5 {[%clk 0:02:47]} 11. exf6 {[%clk 0:02:51]}  Nxf6 {[%clk 0:02:47]} 12. Nxf6+ {[%clk 0:02:50]}  Bxf6 {[%clk 0:02:46]} 13. O-O {[%clk 0:02:51]}  e5 {[%clk 0:02:40]} 14. f4 {[%clk 0:02:49]}  exf4 {[%clk 0:02:13]} 15. Bxf4 {[%clk 0:02:47]}  d5 {[%clk 0:02:13]} 16. Qc2 {[%clk 0:02:32]}  g6 {[%clk 0:02:04]} 17. Rae1 {[%clk 0:02:30]}  Qb6+ {[%clk 0:01:58]} 18. Be3 {[%clk 0:02:30]}  Qc7 {[%clk 0:01:46]} 19. Bc5 {[%clk 0:02:28]}  Bg4 {[%clk 0:01:11]} 20. Bxf8 {[%clk 0:02:27]}  Rxf8 {[%clk 0:01:12]} 21. Bxg6 {[%clk 0:02:16]}  hxg6 {[%clk 0:01:04]} 22. Qxg6+ {[%clk 0:02:17]}  Qg7 {[%clk 0:01:04]} 23. Rxf6 {[%clk 0:02:17]}  Rxf6 {[%clk 0:01:04]} 24. Re8+ {[%clk 0:02:17]}  Rf8 {[%clk 0:01:04]} 25. Rxf8+ {[%clk 0:01:52]}  Kxf8 {[%clk 0:01:05]} 26. Qxc6 {[%clk 0:01:52]}  Qe5 {[%clk 0:00:46]} 27. Qc5+ {[%clk 0:01:50]}  Kg8 {[%clk 0:00:43]} 28. Qf2 {[%clk 0:01:49]}  Qe2 {[%clk 0:00:38]} 29. h3 {[%clk 0:01:38]}  Qxf2+ {[%clk 0:00:34]} 30. Kxf2 {[%clk 0:01:39]}  Be6 {[%clk 0:00:33]} 31. Ke3 {[%clk 0:01:39]}  Kf7 {[%clk 0:00:28]} 32. a3 {[%clk 0:01:32]}  Kf6 {[%clk 0:00:27]} 33. Kf4 {[%clk 0:01:32]}  a5 {[%clk 0:00:24]} 34. b4 {[%clk 0:01:30]}  axb4 {[%clk 0:00:24]} 35. axb4 {[%clk 0:01:31]}  Bd7 {[%clk 0:00:24]} 36. g4 {[%clk 0:01:30]}  Bb5 {[%clk 0:00:22]} 37. h4 {[%clk 0:01:30]}  Be2 {[%clk 0:00:20]} 38. h5 {[%clk 0:01:29]}  Bd1 {[%clk 0:00:18]} 39. b5 {[%clk 0:01:28]}  Be2 {[%clk 0:00:18]} 40. b6 {[%clk 0:01:29]}  Ba6 {[%clk 0:00:19]} 41. g5+ {[%clk 0:01:29]}  Ke6 {[%clk 0:00:19]} 42. h6 {[%clk 0:01:29]}  Kf7 {[%clk 0:00:18]} 43. Ke5 {[%clk 0:01:30]}  Bb7 {[%clk 0:00:17]} 44. Kd6 {[%clk 0:01:30]}  Kg6 {[%clk 0:00:17]} 45. Kc7 {[%clk 0:01:30]}  Ba6 {[%clk 0:00:16]} 46. b7 {[%clk 0:01:30]} 1-0


[Site "https://www.chess.com"]

[Event "Titled Tuesday Blitz November 14 Late 2023"]
[White "Maksimovic, Bojan"]
[Black "WindWhistler11"]
[WhiteFideId "14408120"]
[WhiteElo "2799"]
[BlackElo "2497"]
[Result "1-0"]
[Round "4"]
[TimeControl "180+1"]
[Date "2023.11.14"]
[WhiteClock "0:00:54"]
[BlackClock "0:00:00"]
[Board "24"]

1. Nf3 {[%clk 0:03:00]}  Nf6 {[%clk 0:02:58]} 2. g3 {[%clk 0:03:01]}  d6 {[%clk 0:02:58]} 3. Bg2 {[%clk 0:03:01]}  Nbd7 {[%clk 0:02:57]} 4. O-O {[%clk 0:03:02]}  e5 {[%clk 0:02:58]} 5. d3 {[%clk 0:03:02]}  Be7 {[%clk 0:02:58]} 6. Nbd2 {[%clk 0:03:03]}  O-O {[%clk 0:02:59]} 7. e4 {[%clk 0:03:04]}  c6 {[%clk 0:03:00]} 8. Re1 {[%clk 0:03:04]}  Re8 {[%clk 0:03:00]} 9. c3 {[%clk 0:03:05]}  Qc7 {[%clk 0:03:01]} 10. Qc2 {[%clk 0:03:06]}  b6 {[%clk 0:03:01]} 11. a3 {[%clk 0:03:06]}  a5 {[%clk 0:03:02]} 12. b3 {[%clk 0:03:07]}  Ba6 {[%clk 0:03:02]} 13. Bb2 {[%clk 0:03:07]}  Nc5 {[%clk 0:03:02]} 14. Bf1 {[%clk 0:03:08]}  Ne6 {[%clk 0:02:59]} 15. b4 {[%clk 0:03:07]}  h6 {[%clk 0:02:55]} 16. c4 {[%clk 0:02:59]}  Bc8 {[%clk 0:02:37]} 17. d4 {[%clk 0:02:31]}  exd4 {[%clk 0:02:32]} 18. Nxd4 {[%clk 0:02:32]}  Nxd4 {[%clk 0:02:23]} 19. Bxd4 {[%clk 0:02:33]}  c5 {[%clk 0:02:22]} 20. bxc5 {[%clk 0:02:32]}  bxc5 {[%clk 0:02:07]} 21. Bc3 {[%clk 0:02:31]}  Bb7 {[%clk 0:02:06]} 22. f3 {[%clk 0:02:17]}  Nd7 {[%clk 0:01:57]} 23. Bd3 {[%clk 0:02:08]}  Bf6 {[%clk 0:01:44]} 24. Bxf6 {[%clk 0:02:08]}  Nxf6 {[%clk 0:01:41]} 25. Nf1 {[%clk 0:02:08]}  Nd7 {[%clk 0:01:34]} 26. Ne3 {[%clk 0:02:06]}  Ne5 {[%clk 0:01:34]} 27. Rf1 {[%clk 0:01:59]}  Bc6 {[%clk 0:01:28]} 28. Rab1 {[%clk 0:01:57]}  a4 {[%clk 0:01:26]} 29. Be2 {[%clk 0:01:57]}  Rab8 {[%clk 0:01:25]} 30. Qd2 {[%clk 0:01:43]}  Rb3 {[%clk 0:01:23]} 31. Rxb3 {[%clk 0:01:35]}  axb3 {[%clk 0:01:24]} 32. Rb1 {[%clk 0:01:35]}  Rb8 {[%clk 0:01:20]} 33. Nf5 {[%clk 0:01:35]}  Ba4 {[%clk 0:00:58]} 34. Rb2 {[%clk 0:01:07]}  Rb6 {[%clk 0:00:46]} 35. Qa5 {[%clk 0:00:55]}  Bd7 {[%clk 0:00:01]} 36. Ne7+ {[%clk 0:00:53]}  Kh7 {[%clk 0:00:00]} 37. Nd5 {[%clk 0:00:54]} 1-0


[Site "https://www.chess.com"]

[Event "Titled Tuesday Blitz November 14 Late 2023"]
[White "Sydoryka, Vladyslav"]
[Black "Marcziter, Dmitrii"]
[WhiteFideId "14145928"]
[BlackFideId "13900765"]
[WhiteElo "2670"]
[BlackElo "2440"]
[Result "1-0"]
[Round "4"]
[TimeControl "180+1"]
[Date "2023.11.14"]
[WhiteClock "0:01:36"]
[BlackClock "0:01:02"]
[Board "26"]

1. c4 {[%clk 0:02:51]}  e5 {[%clk 0:02:59]} 2. g3 {[%clk 0:02:51]}  Nc6 {[%clk 0:02:58]} 3. Bg2 {[%clk 0:02:52]}  g6 {[%clk 0:02:58]} 4. Nc3 {[%clk 0:02:52]}  Bg7 {[%clk 0:02:58]} 5. d3 {[%clk 0:02:51]}  d6 {[%clk 0:02:58]} 6. Nf3 {[%clk 0:02:43]}  f5 {[%clk 0:02:57]} 7. O-O {[%clk 0:02:41]}  Nf6 {[%clk 0:02:56]} 8. Rb1 {[%clk 0:02:40]}  a5 {[%clk 0:02:56]} 9. a3 {[%clk 0:02:39]}  O-O {[%clk 0:02:55]} 10. b4 {[%clk 0:02:38]}  axb4 {[%clk 0:02:55]} 11. axb4 {[%clk 0:02:39]}  Nh5 {[%clk 0:02:54]} 12. b5 {[%clk 0:02:35]}  Ne7 {[%clk 0:02:54]} 13. Bb2 {[%clk 0:02:21]}  f4 {[%clk 0:02:45]} 14. Ra1 {[%clk 0:02:16]}  Bf5 {[%clk 0:02:37]} 15. e3 {[%clk 0:02:03]}  h6 {[%clk 0:02:28]} 16. Nh4 {[%clk 0:01:57]}  Rxa1 {[%clk 0:01:59]} 17. Bxa1 {[%clk 0:01:58]}  Bc8 {[%clk 0:01:56]} 18. Nxg6 {[%clk 0:01:56]}  Nxg6 {[%clk 0:01:46]} 19. Qxh5 {[%clk 0:01:57]}  Ne7 {[%clk 0:01:23]} 20. exf4 {[%clk 0:01:35]}  exf4 {[%clk 0:01:22]} 21. Nd5 {[%clk 0:01:35]}  Nxd5 {[%clk 0:01:05]} 22. Bxd5+ {[%clk 0:01:36]}  Kh8 {[%clk 0:01:02]} 23. Qxh6# {[%clk 0:01:36]} 1-0


[Site "https://www.chess.com"]

[Event "Titled Tuesday Blitz November 14 Late 2023"]
[White "Bortnyk, Olexandr"]
[Black "Garrido, Denis"]
[WhiteFideId "14120828"]
[BlackFideId "601217"]
[WhiteElo "3007"]
[BlackElo "2387"]
[Result "1-0"]
[Round "4"]
[TimeControl "180+1"]
[Date "2023.11.14"]
[WhiteClock "0:02:18"]
[BlackClock "0:01:53"]
[Board "28"]

1. e4 {[%clk 0:03:00]}  c6 {[%clk 0:02:59]} 2. c4 {[%clk 0:02:57]}  d5 {[%clk 0:02:59]} 3. cxd5 {[%clk 0:02:58]}  cxd5 {[%clk 0:03:00]} 4. exd5 {[%clk 0:02:58]}  Nf6 {[%clk 0:03:00]} 5. Qa4+ {[%clk 0:02:58]}  Nbd7 {[%clk 0:03:00]} 6. Nc3 {[%clk 0:02:59]}  g6 {[%clk 0:03:00]} 7. Nf3 {[%clk 0:02:59]}  Bg7 {[%clk 0:03:00]} 8. Bc4 {[%clk 0:03:00]}  O-O {[%clk 0:03:00]} 9. d3 {[%clk 0:03:00]}  a6 {[%clk 0:02:58]} 10. Qa3 {[%clk 0:03:00]}  b5 {[%clk 0:02:57]} 11. Bxb5 {[%clk 0:03:00]}  Bb7 {[%clk 0:02:57]} 12. Bc6 {[%clk 0:02:59]}  Bxc6 {[%clk 0:02:48]} 13. dxc6 {[%clk 0:03:00]}  Nb6 {[%clk 0:02:49]} 14. O-O {[%clk 0:02:58]}  Qc7 {[%clk 0:02:46]} 15. Be3 {[%clk 0:02:54]}  e6 {[%clk 0:02:31]} 16. Qa5 {[%clk 0:02:26]}  Rfb8 {[%clk 0:02:25]} 17. Ne5 {[%clk 0:02:21]}  Nh5 {[%clk 0:01:53]} 18. Nd7 {[%clk 0:02:18]} 1-0


[Site "https://www.chess.com"]

[Event "Titled Tuesday Blitz November 14 Late 2023"]
[White "Gholami Orimi, Mahdi"]
[Black "Manukyan, Sargis A."]
[WhiteFideId "12558486"]
[BlackFideId "13303970"]
[WhiteElo "2945"]
[BlackElo "2581"]
[Result "1-0"]
[Round "4"]
[TimeControl "180+1"]
[Date "2023.11.14"]
[WhiteClock "0:01:12"]
[BlackClock "0:00:07"]
[Board "30"]

1. d4 {[%clk 0:03:00]}  d5 {[%clk 0:03:00]} 2. c4 {[%clk 0:03:00]}  e6 {[%clk 0:03:00]} 3. Nc3 {[%clk 0:02:59]}  Nf6 {[%clk 0:03:00]} 4. cxd5 {[%clk 0:02:59]}  Nxd5 {[%clk 0:03:00]} 5. e4 {[%clk 0:02:59]}  Nxc3 {[%clk 0:03:01]} 6. bxc3 {[%clk 0:03:00]}  c5 {[%clk 0:03:01]} 7. Nf3 {[%clk 0:03:00]}  cxd4 {[%clk 0:03:02]} 8. cxd4 {[%clk 0:03:01]}  Bb4+ {[%clk 0:03:02]} 9. Bd2 {[%clk 0:03:02]}  Bxd2+ {[%clk 0:03:03]} 10. Qxd2 {[%clk 0:03:03]}  O-O {[%clk 0:03:03]} 11. Bc4 {[%clk 0:03:03]}  Nd7 {[%clk 0:03:03]} 12. O-O {[%clk 0:03:04]}  b6 {[%clk 0:03:03]} 13. Rad1 {[%clk 0:03:04]}  Bb7 {[%clk 0:03:03]} 14. Rfe1 {[%clk 0:03:05]}  Rc8 {[%clk 0:03:03]} 15. Bd3 {[%clk 0:03:04]}  h6 {[%clk 0:03:02]} 16. Qf4 {[%clk 0:03:01]}  Qc7 {[%clk 0:02:56]} 17. Qg4 {[%clk 0:02:55]}  Nf6 {[%clk 0:02:53]} 18. Qh4 {[%clk 0:02:55]}  Qd8 {[%clk 0:02:50]} 19. Qh3 {[%clk 0:02:52]}  Nh7 {[%clk 0:02:48]} 20. Qg3 {[%clk 0:02:42]}  Ng5 {[%clk 0:02:47]} 21. Ne5 {[%clk 0:02:33]}  Qxd4 {[%clk 0:02:20]} 22. h4 {[%clk 0:02:29]}  Nxe4 {[%clk 0:01:25]} 23. Bxe4 {[%clk 0:02:27]}  Qxe4 {[%clk 0:01:07]} 24. Rxe4 {[%clk 0:02:27]}  Bxe4 {[%clk 0:01:08]} 25. Nd7 {[%clk 0:02:28]}  Bc2 {[%clk 0:00:55]} 26. Rd2 {[%clk 0:02:27]}  Rfd8 {[%clk 0:00:51]} 27. Nf6+ {[%clk 0:02:27]}  Kh8 {[%clk 0:00:51]} 28. Rxd8+ {[%clk 0:02:26]}  Rxd8 {[%clk 0:00:52]} 29. Qc7 {[%clk 0:02:26]}  Rd1+ {[%clk 0:00:49]} 30. Kh2 {[%clk 0:02:26]}  gxf6 {[%clk 0:00:50]} 31. Qxc2 {[%clk 0:02:25]}  Rd5 {[%clk 0:00:47]} 32. Qc7 {[%clk 0:02:25]}  Kg7 {[%clk 0:00:47]} 33. Qxa7 {[%clk 0:02:25]}  b5 {[%clk 0:00:48]} 34. Qe3 {[%clk 0:02:22]}  h5 {[%clk 0:00:47]} 35. Qg3+ {[%clk 0:02:21]}  Kf8 {[%clk 0:00:46]} 36. f3 {[%clk 0:02:21]}  Ke7 {[%clk 0:00:45]} 37. Qb8 {[%clk 0:02:19]}  Re5 {[%clk 0:00:43]} 38. g4 {[%clk 0:02:17]}  Rd5 {[%clk 0:00:38]} 39. Kg3 {[%clk 0:02:16]}  hxg4 {[%clk 0:00:35]} 40. fxg4 {[%clk 0:02:15]}  Rd3+ {[%clk 0:00:35]} 41. Kf2 {[%clk 0:02:12]}  Rd2+ {[%clk 0:00:35]} 42. Ke3 {[%clk 0:02:12]}  Rxa2 {[%clk 0:00:35]} 43. h5 {[%clk 0:02:13]}  Ra3+ {[%clk 0:00:32]} 44. Kf2 {[%clk 0:02:12]}  Ra2+ {[%clk 0:00:29]} 45. Kg3 {[%clk 0:02:13]}  Ra3+ {[%clk 0:00:28]} 46. Kh4 {[%clk 0:02:12]}  Ra1 {[%clk 0:00:28]} 47. Qxb5 {[%clk 0:02:08]}  Kf8 {[%clk 0:00:25]} 48. Qb2 {[%clk 0:02:03]}  Rf1 {[%clk 0:00:24]} 49. Kg3 {[%clk 0:01:57]}  Kg7 {[%clk 0:00:21]} 50. Kh2 {[%clk 0:01:52]}  e5 {[%clk 0:00:16]} 51. Qe2 {[%clk 0:01:42]}  Rf4 {[%clk 0:00:17]} 52. Kg3 {[%clk 0:01:43]}  Kh6 {[%clk 0:00:16]} 53. Qd1 {[%clk 0:01:38]}  Kg7 {[%clk 0:00:17]} 54. Qd7 {[%clk 0:01:37]}  Rd4 {[%clk 0:00:14]} 55. Qe8 {[%clk 0:01:35]}  Rd3+ {[%clk 0:00:13]} 56. Kh4 {[%clk 0:01:36]}  Rd1 {[%clk 0:00:12]} 57. Qa8 {[%clk 0:01:36]}  Rd2 {[%clk 0:00:12]} 58. h6+ {[%clk 0:01:27]}  Kxh6 {[%clk 0:00:10]} 59. Qh8+ {[%clk 0:01:27]}  Kg6 {[%clk 0:00:10]} 60. Qg8+ {[%clk 0:01:27]}  Kh6 {[%clk 0:00:10]} 61. Qxf7 {[%clk 0:01:27]}  Rf2 {[%clk 0:00:10]} 62. Kg3 {[%clk 0:01:24]}  Rf4 {[%clk 0:00:10]} 63. Kh4 {[%clk 0:01:24]}  Rf1 {[%clk 0:00:10]} 64. Qg8 {[%clk 0:01:23]}  Rh1+ {[%clk 0:00:10]} 65. Kg3 {[%clk 0:01:23]}  Rf1 {[%clk 0:00:10]} 66. Kg2 {[%clk 0:01:22]}  Rf4 {[%clk 0:00:10]} 67. Kh2 {[%clk 0:01:22]}  Rf2+ {[%clk 0:00:08]} 68. Kg3 {[%clk 0:01:22]}  Rf1 {[%clk 0:00:09]} 69. Qf7 {[%clk 0:01:12]}  Rg1+ {[%clk 0:00:06]} 70. Kf3 {[%clk 0:01:07]}  Rf1+ {[%clk 0:00:05]} 71. Kg2 {[%clk 0:01:08]}  Rf4 {[%clk 0:00:04]} 72. Qg8 {[%clk 0:01:07]}  Rb4 {[%clk 0:00:02]} 73. Qf8+ {[%clk 0:01:05]}  Kg5 {[%clk 0:00:02]} 74. Qxb4 {[%clk 0:01:06]}  Kg6 {[%clk 0:00:02]} 75. Qe4+ {[%clk 0:01:06]}  Kf7 {[%clk 0:00:03]} 76. Qf5 {[%clk 0:01:06]}  Kg7 {[%clk 0:00:03]} 77. Kg3 {[%clk 0:01:06]}  e4 {[%clk 0:00:04]} 78. Qxe4 {[%clk 0:01:07]}  Kh6 {[%clk 0:00:05]} 79. Qf5 {[%clk 0:01:07]}  Kg7 {[%clk 0:00:05]} 80. Kh4 {[%clk 0:01:08]}  Kh6 {[%clk 0:00:05]} 81. Qxf6+ {[%clk 0:01:08]}  Kh7 {[%clk 0:00:05]} 82. Qg5 {[%clk 0:01:08]}  Kh8 {[%clk 0:00:04]} 83. Kg3 {[%clk 0:01:09]}  Kh7 {[%clk 0:00:04]} 84. Kf4 {[%clk 0:01:10]}  Kh8 {[%clk 0:00:05]} 85. Kf5 {[%clk 0:01:11]}  Kh7 {[%clk 0:00:06]} 86. Kf6 {[%clk 0:01:12]}  Kh8 {[%clk 0:00:07]} 87. Qg7# {[%clk 0:01:12]} 1-0


[Site "https://www.chess.com"]

[Event "Titled Tuesday Blitz November 14 Late 2023"]
[White "Beerdsen, Thomas"]
[Black "The_Straightforward_Rook"]
[WhiteFideId "1030108"]
[WhiteElo "2859"]
[BlackElo "2571"]
[Result "1-0"]
[Round "4"]
[TimeControl "180+1"]
[Date "2023.11.14"]
[WhiteClock "0:02:20"]
[BlackClock "0:00:28"]
[Board "33"]

1. e4 {[%clk 0:03:00]}  e5 {[%clk 0:02:57]} 2. d4 {[%clk 0:03:01]}  exd4 {[%clk 0:02:57]} 3. Qxd4 {[%clk 0:03:01]}  Nc6 {[%clk 0:02:57]} 4. Qd3 {[%clk 0:03:02]}  Nf6 {[%clk 0:02:54]} 5. Nc3 {[%clk 0:03:02]}  Bb4 {[%clk 0:02:53]} 6. Bd2 {[%clk 0:03:03]}  O-O {[%clk 0:02:52]} 7. O-O-O {[%clk 0:03:03]}  Re8 {[%clk 0:02:50]} 8. Nge2 {[%clk 0:03:04]}  d6 {[%clk 0:02:44]} 9. Bg5 {[%clk 0:03:04]}  h6 {[%clk 0:02:42]} 10. Bxf6 {[%clk 0:03:05]}  Qxf6 {[%clk 0:02:41]} 11. Nd5 {[%clk 0:03:06]}  Qd8 {[%clk 0:02:41]} 12. Nxb4 {[%clk 0:03:06]}  Nxb4 {[%clk 0:02:41]} 13. Qd2 {[%clk 0:03:07]}  a5 {[%clk 0:02:39]} 14. a3 {[%clk 0:03:05]}  Nc6 {[%clk 0:02:36]} 15. Nc3 {[%clk 0:03:03]}  Be6 {[%clk 0:02:34]} 16. f4 {[%clk 0:03:00]}  f5 {[%clk 0:02:10]} 17. Bd3 {[%clk 0:02:56]}  fxe4 {[%clk 0:02:07]} 18. Bxe4 {[%clk 0:02:56]}  Qf6 {[%clk 0:02:04]} 19. Rhg1 {[%clk 0:02:49]}  Rad8 {[%clk 0:01:45]} 20. g4 {[%clk 0:02:48]}  d5 {[%clk 0:01:45]} 21. g5 {[%clk 0:02:46]}  hxg5 {[%clk 0:01:26]} 22. fxg5 {[%clk 0:02:47]}  Qf7 {[%clk 0:01:16]} 23. Bd3 {[%clk 0:02:45]}  Ne5 {[%clk 0:01:14]} 24. g6 {[%clk 0:02:36]}  Qf3 {[%clk 0:01:04]} 25. Rg3 {[%clk 0:02:27]}  Nxd3+ {[%clk 0:00:58]} 26. cxd3 {[%clk 0:02:28]}  Qh5 {[%clk 0:00:57]} 27. Re1 {[%clk 0:02:29]}  c6 {[%clk 0:00:53]} 28. Qf4 {[%clk 0:02:24]}  Bf5 {[%clk 0:00:52]} 29. Rxe8+ {[%clk 0:02:22]}  Rxe8 {[%clk 0:00:52]} 30. Rg5 {[%clk 0:02:22]}  Re1+ {[%clk 0:00:43]} 31. Kd2 {[%clk 0:02:22]}  Rf1 {[%clk 0:00:29]} 32. Qb8+ {[%clk 0:02:19]}  Bc8 {[%clk 0:00:29]} 33. Qxc8+ {[%clk 0:02:19]}  Rf8 {[%clk 0:00:30]} 34. Qe6+ {[%clk 0:02:20]}  Kh8 {[%clk 0:00:28]} 35. Rxh5# {[%clk 0:02:20]} 1-0


[Site "https://www.chess.com"]